bitfinex-derivatives/quotes_BTCF0:USTF0_20250125
["timestamp","ask_amount","ask_price","bid_price","bid_amount"]
[1737844257890,0.79218,105050.0,105040.0,0.20717921]
[1737844258095,1.15298,105050.0,105040.0,0.20717921]
[1737844258302,1.18140558,105050.0,105040.0,0.03611635]
[1737844260201,1.18140558,105050.0,105040.0,0.00307972]
[1737844266310,1.10620558,105050.0,105040.0,0.00307972]
[1737844267711,1.10620558,105050.0,105040.0,0.03611781]
[1737844277411,1.10620558,105050.0,105040.0,0.00307972]
[1737844279517,1.10620558,105050.0,105040.0,0.03610059]
[1737844279725,1.10620558,105050.0,105040.0,0.00307972]
[1737844283815,1.10620558,105050.0,105040.0,0.03609261]
[1737844284216,1.10620558,105050.0,105040.0,0.20715547]
[1737844284618,1.10620558,105050.0,105040.0,0.17414258]
[1737844288118,1.10620558,105050.0,105040.0,0.32648758]
[1737844288320,1.10620558,105050.0,105040.0,0.3595063]
[1737844288725,1.05485528,105050.0,105040.0,0.3595063]
[1737844289219,1.09653979,105050.0,105040.0,0.3595063]
[1737844289417,0.17125849,105050.0,105040.0,0.4108566]
[1737844289625,0.17125849,105050.0,105040.0,0.46983306]
[1737844290629,0.17125849,105050.0,105040.0,0.54446201]
[1737844291329,0.17125849,105050.0,105040.0,0.50280881]
[1737844292933,0.08565215,105050.0,105040.0,1.14553897]
[1737844293133,0.77008044,105060.0,105050.0,0.152331]
[1737844293330,0.77008044,105060.0,105050.0,0.41521705]
[1737844293832,0.77008044,105060.0,105050.0,0.3822413]
[1737844294327,0.77108044,105060.0,105050.0,0.3822413]
[1737844294724,0.61875644,105060.0,105050.0,0.3822413]
[1737844296926,0.61875644,105060.0,105050.0,0.41507354]
[1737844297535,0.3618,105060.0,105050.0,0.58578071]
[1737844300436,0.3618,105060.0,105050.0,0.55294847]
[1737844301438,0.3618,105060.0,105050.0,0.56252049]
[1737844307744,0.3608,105060.0,105050.0,0.56252049]
[1737844307939,0.3608,105060.0,105050.0,0.56452049]
[1737844309245,0.3608,105060.0,105050.0,0.56552049]
[1737844309645,0.3608,105060.0,105050.0,0.59835273]
[1737844316343,0.18003463,105070.0,105060.0,0.152316]
[1737844316643,0.18003463,105070.0,105060.0,0.54594824]
[1737844317038,0.18003463,105070.0,105060.0,0.59729854]
[1737844317745,0.18103463,105070.0,105060.0,0.59729854]
[1737844318147,0.07254269,105070.0,105060.0,0.59729854]
[1737844319353,0.00114269,105070.0,105060.0,0.59729854]
[1737844320554,0.00114269,105070.0,105060.0,0.63780997]
[1737844320952,0.00114269,105070.0,105060.0,0.68916027]
[1737844323656,0.00114269,105070.0,105060.0,0.97318869]
[1737844328459,0.00114269,105070.0,105060.0,1.01484189]
[1737844329158,0.00114269,105070.0,105060.0,0.97318869]
[1737844332055,0.00114269,105070.0,105060.0,1.01484189]
[1737844333256,0.00114269,105070.0,105060.0,0.97318869]
[1737844333657,0.00114269,105070.0,105060.0,1.06836786]
[1737844334459,0.0713,105080.0,105070.0,0.152302]
[1737844334764,0.67707531,105090.0,105080.0,0.152287]
[1737844334964,0.67707531,105090.0,105080.0,0.30458954]
[1737844335961,0.67707531,105090.0,105080.0,0.30558954]
[1737844335962,0.68507531,105090.0,105080.0,0.30558954]
[1737844337369,0.68807531,105090.0,105080.0,0.30558954]
[1737844338559,0.17500131,105090.0,105080.0,0.30558954]
[1737844339566,0.13850131,105090.0,105080.0,0.28220983]
[1737844339768,0.13850131,105090.0,105080.0,0.33356013]
[1737844340065,0.13850131,105090.0,105080.0,0.28220983]
[1737844340363,0.13850131,105090.0,105080.0,0.33356013]
[1737844341560,0.12520286,105090.0,105080.0,0.33356013]
[1737844344968,0.12520286,105090.0,105080.0,0.28220983]
[1737844346271,0.011,105090.0,105080.0,0.28220983]
[1737844349567,0.011,105090.0,105080.0,0.23085953]
[1737844351271,0.011,105090.0,105080.0,0.27140278]
[1737844352374,0.011,105090.0,105080.0,0.23085953]
[1737844356974,0.011,105090.0,105080.0,0.28220983]
[1737844357173,0.011,105090.0,105080.0,0.23085953]
[1737844357865,0.011,105090.0,105080.0,0.45840742]
[1737844359073,0.3718,105090.0,105080.0,0.45840742]
[1737844359571,0.3718,105090.0,105080.0,0.50975772]
[1737844360677,0.011,105090.0,105080.0,0.50975772]
[1737844361275,0.3718,105090.0,105080.0,0.50975772]
[1737844362168,0.011,105090.0,105080.0,0.50975772]
[1737844362677,0.011,105090.0,105080.0,0.55031311]
[1737844362971,0.3718,105090.0,105080.0,0.50975772]
[1737844363772,0.3718,105090.0,105080.0,0.55031683]
[1737844364673,0.48581306,105090.0,105080.0,0.55031683]
[1737844369185,0.48581306,105090.0,105080.0,0.88610199]
[1737844369585,0.12501306,105090.0,105080.0,1.24690199]
[1737844373685,0.011,105090.0,105080.0,1.0193541]
[1737844374785,0.011,105090.0,105080.0,1.0336341]
[1737844375193,0.011,105090.0,105080.0,0.6728341]
[1737844375793,0.011,105090.0,105080.0,1.0336341]
[1737844377286,0.011,105090.0,105080.0,0.6728341]
[1737844378393,0.011,105090.0,105080.0,0.7144873]
[1737844380890,0.011,105090.0,105080.0,0.6728341]
[1737844394611,0.011,105090.0,105080.0,0.6585541]
[1737844395114,0.011,105090.0,105080.0,0.6728341]
[1737844401018,0.011,105090.0,105080.0,1.01415594]
[1737844402119,0.011,105090.0,105080.0,0.96280564]
[1737844402416,0.011,105090.0,105080.0,1.37495594]
[1737844403222,0.011,105090.0,105080.0,1.32360564]
[1737844404718,0.011,105090.0,105080.0,0.96280564]
[1737844406013,0.011,105090.0,105080.0,1.32360564]
[1737844407025,0.011,105090.0,105080.0,1.37495594]
[1737844414122,0.09663324,105090.0,105080.0,1.0336341]
[1737844414526,0.09663324,105090.0,105080.0,1.0193541]
[1737844414727,0.09663324,105090.0,105080.0,1.0336341]
[1737844416632,0.08563324,105090.0,105080.0,1.0336341]
[1737844416931,0.05381044,105090.0,105080.0,1.0336341]
[1737844421845,0.05381044,105090.0,105080.0,1.37495594]
[1737844426739,0.05381044,105090.0,105080.0,1.01415594]
[1737844428039,0.05381044,105090.0,105080.0,1.37495594]
[1737844428339,0.05381044,105090.0,105080.0,1.01415594]
[1737844428638,0.05381044,105090.0,105080.0,0.72972108]
[1737844428933,0.05381044,105090.0,105080.0,1.09052108]
[1737844429139,0.05381044,105090.0,105080.0,0.72972108]
[1737844429440,0.05381044,105090.0,105080.0,1.09052108]
[1737844430043,0.05381044,105090.0,105080.0,1.13083087]
[1737844431738,0.05381044,105090.0,105080.0,0.76999087]
[1737844434542,0.05381044,105090.0,105080.0,0.75571087]
[1737844435545,0.05381044,105090.0,105080.0,0.76999087]
[1737844437537,0.05381044,105090.0,105080.0,1.09048108]
[1737844439644,0.61823374,105090.0,105080.0,0.39233348]
[1737844439848,0.152287,105080.0,105070.0,0.66406152]
[1737844440044,0.6324373,105080.0,105070.0,0.66406152]
[1737844440736,0.9837876,105080.0,105070.0,0.66406152]
[1737844440941,0.9837876,105080.0,105070.0,1e-08]
[1737844441138,0.152302,105070.0,105060.0,0.2918958]
[1737844441453,0.5644523,105070.0,105060.0,0.2918958]
[1737844441946,0.5644523,105070.0,105060.0,1e-08]
[1737844442242,0.8644523,105070.0,105060.0,1e-08]
[1737844442448,0.8674523,105070.0,105060.0,1e-08]
[1737844442650,0.8684523,105070.0,105060.0,1e-08]
[1737844443143,0.9198026,105070.0,105060.0,1e-08]
[1737844444754,0.7715006,105070.0,105050.0,0.25646966]
[1737844445047,0.6280166,105060.0,105050.0,0.25646966]
[1737844446047,0.6280166,105060.0,105050.0,0.25746966]
[1737844446348,0.6280166,105060.0,105050.0,0.00107972]
[1737844447534,0.6280166,105060.0,105050.0,7.972e-05]
[1737844447740,0.6310166,105060.0,105050.0,7.972e-05]
[1737844448549,0.6320166,105060.0,105050.0,7.972e-05]
[1737844448848,0.152345,105040.0,105030.0,0.152351]
[1737844449048,0.5644953,105040.0,105030.0,0.152351]
[1737844450138,0.5644953,105040.0,105030.0,0.154351]
[1737844450339,0.513145,105040.0,105030.0,0.154351]
[1737844450844,0.513145,105040.0,105030.0,0.002]
[1737844451045,0.513145,105040.0,105030.0,0.006]
[1737844453038,0.873945,105040.0,105030.0,0.006]
[1737844454442,0.9252953,105040.0,105030.0,0.006]
[1737844454848,0.873945,105040.0,105030.0,0.006]
[1737844457555,0.9252953,105040.0,105030.0,0.006]
[1737844458155,0.873945,105040.0,105030.0,0.006]
[1737844462343,0.513145,105040.0,105030.0,0.006]
[1737844462551,0.152345,105040.0,105030.0,0.006]
[1737844462753,0.513145,105040.0,105030.0,0.006]
[1737844464144,0.5644953,105040.0,105030.0,0.006]
[1737844467046,0.57380304,105040.0,105030.0,0.006]
[1737844467654,0.52245274,105040.0,105030.0,0.006]
[1737844469249,0.513145,105040.0,105030.0,0.006]
[1737844469649,0.513145,105040.0,105030.0,0.0688]
[1737844469853,0.7683395,105040.0,105030.0,0.0688]
[1737844470558,0.8196898,105040.0,105030.0,0.0688]
[1737844471354,0.7683395,105040.0,105030.0,0.0688]
[1737844472061,0.513145,105040.0,105030.0,0.0688]
[1737844473561,0.5644953,105040.0,105030.0,0.0688]
[1737844474657,0.6158456,105040.0,105030.0,0.0688]
[1737844476271,0.6158456,105040.0,105030.0,0.1090394]
[1737844476564,0.5644953,105040.0,105030.0,0.1090394]
[1737844478567,0.6158456,105040.0,105030.0,0.1090394]
[1737844478963,0.6158456,105040.0,105030.0,0.0688]
[1737844480361,0.46360513,105040.0,105010.0,0.06812]
[1737844480567,0.152374,105020.0,105010.0,0.1083629]
[1737844481159,0.513174,105020.0,105010.0,0.0915932]
[1737844481360,0.513174,105020.0,105010.0,0.1083629]
[1737844481675,0.514174,105020.0,105010.0,0.1223629]
[1737844483165,0.515174,105020.0,105010.0,0.0552429]
[1737844483473,0.515174,105020.0,105010.0,0.1233629]
[1737844483670,0.515174,105020.0,105010.0,0.2157629]
[1737844484165,0.82908507,105020.0,105010.0,0.2157629]
[1737844484965,0.82908507,105020.0,105010.0,0.22353291]
[1737844485769,0.88043537,105020.0,105010.0,0.22353291]
[1737844487470,0.82908507,105020.0,105010.0,0.22353291]
[1737844488574,0.65786085,105020.0,105010.0,0.22353291]
[1737844491878,0.77196501,105020.0,105010.0,0.22353291]
[1737844493578,0.82331531,105020.0,105010.0,0.22353291]
[1737844494178,0.77196501,105020.0,105010.0,0.22353291]
[1737844494780,0.82331531,105020.0,105010.0,0.22357291]
[1737844495481,0.46251531,105020.0,105010.0,0.22357291]
[1737844496070,0.82331531,105020.0,105010.0,0.22357291]
[1737844496776,0.77196501,105020.0,105010.0,0.18333001]
[1737844497380,0.62927816,105020.0,105010.0,0.22354634]
[1737844500881,0.62927816,105020.0,105010.0,0.15538634]
[1737844501080,0.62927816,105020.0,105010.0,0.22354634]
[1737844501378,0.62927816,105020.0,105010.0,0.18333001]
[1737844501576,0.62927816,105020.0,105010.0,0.22355063]
[1737844507579,0.77196501,105020.0,105010.0,0.22355063]
[1737844510292,0.65786085,105020.0,105010.0,0.22355063]
[1737844510990,0.65786085,105020.0,105010.0,0.264107]
[1737844511688,0.65786085,105020.0,105010.0,0.22355063]
[1737844513192,0.70921115,105020.0,105010.0,0.22355063]
[1737844513395,0.65786085,105020.0,105010.0,0.22355063]
[1737844513891,0.65786085,105020.0,105010.0,0.15539063]
[1737844514091,0.65786085,105020.0,105010.0,0.22355063]
[1737844521602,0.29706085,105020.0,105010.0,0.22355063]
[1737844525211,0.41131778,105020.0,105010.0,0.22355063]
[1737844528612,0.77211778,105020.0,105010.0,0.22355063]
[1737844528815,0.41131778,105020.0,105010.0,0.22355063]
[1737844529910,0.77211778,105020.0,105010.0,0.22355063]
[1737844531621,0.77211778,105020.0,105010.0,0.264107]
[1737844533919,0.65786085,105020.0,105010.0,0.264107]
[1737844540522,0.65786085,105020.0,105010.0,0.264067]
[1737844540821,0.29706085,105020.0,105010.0,0.264067]
[1737844544618,0.65786085,105020.0,105010.0,0.264067]
[1737844544819,0.65786085,105020.0,105010.0,0.06299063]
[1737844544820,0.76065724,105020.0,105010.0,0.06299063]
[1737844545016,0.76065724,105020.0,105010.0,0.05522062]
[1737844545216,0.76065724,105020.0,105010.0,0.015]
[1737844545523,0.87489738,105020.0,105010.0,0.015]
[1737844548021,0.88233272,105020.0,105010.0,0.015]
[1737844548927,0.76809258,105020.0,105010.0,0.015]
[1737844551930,0.79662995,105020.0,105010.0,0.015]
[1737844557922,0.93930006,105020.0,105010.0,0.015]
[1737844559725,0.93930006,105020.0,105010.0,0.01526168]
[1737844567042,0.79662995,105020.0,105010.0,0.01526168]
[1737844575542,0.74527965,105020.0,105010.0,0.01526168]
[1737844575741,0.79662995,105020.0,105010.0,0.01526168]
[1737844576344,0.74527965,105020.0,105010.0,0.01526168]
[1737844577045,0.57405543,105020.0,105010.0,0.01526168]
[1737844578148,0.62540573,105020.0,105010.0,0.01526168]
[1737844578347,0.57405543,105020.0,105010.0,0.04536168]
[1737844583643,0.74542116,105020.0,105010.0,0.04536168]
[1737844598456,0.68663552,105020.0,105010.0,0.04536168]
[1737844598660,0.32583552,105020.0,105010.0,0.19775068]
[1737844598858,0.73798582,105020.0,105010.0,0.22905068]
[1737844599062,0.73798582,105020.0,105010.0,0.26933982]
[1737844599560,0.73798582,105020.0,105010.0,0.22905068]
[1737844599859,0.73798582,105020.0,105010.0,0.32068706]
[1737844599860,0.68663552,105020.0,105010.0,0.32068706]
[1737844600261,0.32583552,105020.0,105010.0,0.32068706]
[1737844601759,0.26866075,105020.0,105010.0,0.32068706]
[1737844602665,0.11628675,105020.0,105010.0,0.32068706]
[1737844604667,0.08766373,105020.0,105010.0,0.32068706]
[1737844608573,0.44846373,105020.0,105010.0,0.32068706]
[1737844609462,0.08766373,105020.0,105010.0,0.32068706]
[1737844613673,0.00209579,105020.0,105010.0,0.32068706]
[1737844614769,0.00209579,105020.0,105010.0,0.33500706]
[1737844620779,0.00209579,105020.0,105010.0,0.37667857]
[1737844621683,0.00209579,105020.0,105010.0,0.83270306]
[1737844629292,0.19990159,105030.0,105020.0,0.152374]
[1737844629488,0.19990159,105030.0,105020.0,0.28568189]
[1737844630089,0.56070159,105030.0,105020.0,0.33703219]
[1737844631583,0.20090159,105030.0,105020.0,0.33903219]
[1737844631993,0.20190159,105030.0,105020.0,0.34703219]
[1737844632594,0.25907235,105030.0,105020.0,0.34703219]
[1737844635497,0.25907235,105030.0,105020.0,0.3555017]
[1737844636197,0.11633365,105030.0,105020.0,0.3555017]
[1737844636798,0.11633365,105030.0,105020.0,0.7163017]
[1737844636997,0.11633365,105030.0,105020.0,0.3555017]
[1737844637298,0.11633365,105030.0,105020.0,0.7163017]
[1737844639101,0.20196449,105030.0,105020.0,0.7163017]
[1737844639598,0.20196449,105030.0,105020.0,0.3555017]
[1737844640800,0.20196449,105030.0,105020.0,0.7163017]
[1737844645300,0.08777353,105030.0,105020.0,0.7163017]
[1737844646393,0.08777353,105030.0,105020.0,0.81151712]
[1737844648303,0.04492652,105030.0,105020.0,0.81151712]
[1737844649301,0.04492652,105030.0,105020.0,1.31151712]
[1737844651300,0.04492652,105030.0,105020.0,1.36286742]
[1737844651696,0.00014269,105040.0,105030.0,0.15236]
[1737844652001,0.00014269,105040.0,105030.0,0.82831819]
[1737844653000,0.00014269,105040.0,105030.0,0.83131819]
[1737844655106,0.00014269,105040.0,105030.0,0.84563819]
[1737844655407,0.00114269,105040.0,105030.0,0.84863819]
[1737844657398,0.00114269,105040.0,105030.0,0.94384454]
[1737844657705,0.25835837,105050.0,105030.0,0.8572685]
[1737844658002,0.25835837,105050.0,105040.0,0.2550456]
[1737844658207,0.25835837,105050.0,105040.0,0.29533168]
[1737844658500,0.25835837,105050.0,105040.0,0.65613168]
[1737844659406,0.25835837,105050.0,105040.0,0.65913168]
[1737844660708,0.00142871,105050.0,105040.0,0.75432897]
[1737844661207,0.25707235,105060.0,105050.0,0.152331]
[1737844661501,0.25707235,105060.0,105050.0,0.71871768]
[1737844661708,0.25707235,105060.0,105050.0,0.76038919]
[1737844663200,0.25707235,105060.0,105050.0,0.71871768]
[1737844664605,0.00014269,105060.0,105050.0,0.71871768]
[1737844664909,0.00014269,105060.0,105050.0,0.81390591]
[1737844668802,0.00014269,105060.0,105050.0,0.84400591]
[1737844669007,0.65092966,105080.0,105050.0,0.79234095]
[1737844669204,0.65092966,105080.0,105070.0,0.2036523]
[1737844669415,0.25692966,105080.0,105070.0,0.2036523]
[1737844670615,0.25892966,105080.0,105070.0,0.2036523]
[1737844670914,0.002,105080.0,105070.0,0.2036523]
[1737844671113,0.008,105080.0,105070.0,0.2036523]
[1737844671316,0.006,105080.0,105070.0,0.2550026]
[1737844671508,0.002,105080.0,105070.0,0.5644523]
[1737844671708,0.002,105080.0,105070.0,0.5963523]
[1737844671709,0.008,105080.0,105070.0,0.5963523]
[1737844672321,0.008,105080.0,105070.0,0.6477026]
[1737844673118,0.008,105080.0,105070.0,0.5963523]
[1737844673818,0.008,105080.0,105070.0,0.6477026]
[1737844674607,0.008,105080.0,105070.0,0.7125026]
[1737844675010,0.008,105080.0,105070.0,0.7267826]
[1737844677920,0.008,105080.0,105070.0,0.7357004]
[1737844682127,0.008,105080.0,105070.0,0.83087051]
[1737844684321,0.008,105080.0,105070.0,0.87254202]
[1737844689630,0.008,105080.0,105070.0,0.91262424]
[1737844690133,0.008,105080.0,105070.0,0.98098424]
[1737844694532,0.12219096,105080.0,105070.0,0.96670424]
[1737844694726,0.12219096,105080.0,105070.0,0.98098424]
[1737844700639,0.26492966,105080.0,105070.0,0.98098424]
[1737844709236,0.22210079,105080.0,105070.0,0.98098424]
[1737844710638,1e-08,105080.0,105070.0,1.40040068]
[1737844711937,0.00100001,105080.0,105070.0,1.40040068]
[1737844712436,0.00400001,105080.0,105070.0,1.40040068]
[1737844713334,0.00157073,105090.0,105070.0,1.24809868]
[1737844713539,0.00157073,105090.0,105080.0,0.6157876]
[1737844713738,0.00014269,105090.0,105080.0,0.65586982]
[1737844714141,0.00014269,105090.0,105080.0,0.75103993]
[1737844714638,0.00014269,105090.0,105080.0,0.76531993]
[1737844714836,0.00814269,105090.0,105080.0,0.76631993]
[1737844716246,0.00814269,105090.0,105080.0,0.81767023]
[1737844716445,0.00814269,105090.0,105080.0,0.76631993]
[1737844717045,0.00814269,105090.0,105080.0,0.81767023]
[1737844717736,0.00814269,105090.0,105080.0,0.76631993]
[1737844718137,0.00814269,105090.0,105080.0,0.81767023]
[1737844720145,0.00814269,105090.0,105080.0,0.85934174]
[1737844734554,0.00814269,105090.0,105080.0,0.84506174]
[1737844734757,0.00814269,105090.0,105080.0,0.85934174]
[1737844742556,0.5647387,105110.0,105080.0,0.70705474]
[1737844742760,0.5647387,105110.0,105100.0,0.2549586]
[1737844743061,0.5647387,105110.0,105100.0,0.40483233]
[1737844743963,0.5747387,105110.0,105100.0,0.40583233]
[1737844748267,0.74610443,105110.0,105100.0,0.40583233]
[1737844751361,0.74610443,105110.0,105100.0,0.41516418]
[1737844755466,0.38530443,105110.0,105100.0,0.77596418]
[1737844756758,0.38330443,105110.0,105100.0,0.77596418]
[1737844756959,0.32410443,105110.0,105100.0,0.77596418]
[1737844757166,0.32210443,105110.0,105100.0,0.77596418]
[1737844757968,0.1507387,105110.0,105100.0,0.77596418]
[1737844763570,0.008,105110.0,105100.0,0.77596418]
[1737844770069,0.09354441,105110.0,105100.0,0.78564297]
[1737844770571,0.09354441,105110.0,105100.0,0.73429267]
[1737844771564,0.09354441,105110.0,105100.0,0.78564297]
[1737844771769,0.09354441,105110.0,105100.0,0.73429267]
[1737844773775,0.09354441,105110.0,105100.0,0.78564297]
[1737844774875,0.09354441,105110.0,105100.0,0.79992297]
[1737844775483,0.05072964,105110.0,105100.0,0.84159448]
[1737844785484,0.00791487,105110.0,105100.0,0.84159448]
[1737844787278,0.00791487,105110.0,105100.0,0.79024418]
[1737844787478,0.00791487,105110.0,105100.0,0.84159448]
[1737844788083,0.00791487,105110.0,105100.0,0.79024418]
[1737844788686,0.00791487,105110.0,105100.0,0.84159448]
[1737844789291,0.00791487,105110.0,105100.0,0.79024418]
[1737844789684,0.00791487,105110.0,105100.0,0.84159448]
[1737844789882,0.00791487,105110.0,105100.0,0.79024418]
[1737844791091,0.00791487,105110.0,105100.0,0.84159448]
[1737844791285,0.00791487,105110.0,105100.0,0.79024418]
[1737844795994,0.12194878,105110.0,105100.0,0.79024418]
[1737844797295,0.07913399,105110.0,105100.0,0.79024418]
[1737844800392,0.07913399,105110.0,105100.0,0.93673743]
[1737844800799,0.14288139,105120.0,105110.0,0.152244]
[1737844800996,0.14288139,105120.0,105110.0,0.78899833]
[1737844802900,0.14488139,105120.0,105110.0,0.78899833]
[1737844805191,0.14488139,105120.0,105110.0,0.88413223]
[1737844805401,0.00214269,105120.0,105110.0,0.88413223]
[1737844807093,0.00214269,105120.0,105110.0,0.89381102]
[1737844807294,0.1427387,105130.0,105120.0,0.152229]
[1737844807493,0.1427387,105130.0,105120.0,0.70716212]
[1737844807694,0.1427387,105130.0,105120.0,0.74883363]
[1737844807895,0.1427387,105130.0,105120.0,0.84395848]
[1737844808312,0.1427387,105130.0,105120.0,0.80228697]
[1737844808495,0.1447387,105130.0,105120.0,0.80228697]
[1737844809405,0.002,105130.0,105120.0,0.80228697]
[1737844810900,0.002,105130.0,105120.0,0.84395848]
[1737844812007,0.002,105130.0,105120.0,0.94984655]
[1737844812204,0.001,105130.0,105120.0,0.94984655]
[1737844814397,0.001,105130.0,105120.0,0.90817504]
[1737844814598,0.001,105130.0,105120.0,0.93171615]
[1737844815409,0.00157001,105140.0,105130.0,0.152215]
[1737844815709,0.00157001,105140.0,105130.0,0.45631782]
[1737844816202,0.00157001,105140.0,105130.0,0.81711782]
[1737844817407,0.00357001,105140.0,105130.0,0.81711782]
[1737844822009,0.00357001,105140.0,105130.0,0.72391782]
[1737844828215,0.00157001,105140.0,105130.0,0.72391782]
[1737844828427,0.00257001,105140.0,105130.0,0.72391782]
[1737844831823,0.70590443,105160.0,105140.0,0.152189]
[1737844832121,0.70590443,105160.0,105150.0,0.1027006]
[1737844832518,0.67490443,105160.0,105150.0,0.1027006]
[1737844833125,0.67690443,105160.0,105150.0,0.1027006]
[1737844834426,0.5055387,105160.0,105150.0,0.29502699]
[1737844834924,0.1447387,105160.0,105150.0,0.30930699]
[1737844836026,0.1447387,105160.0,105150.0,0.34914938]
[1737844836926,0.1447387,105160.0,105150.0,0.30930699]
[1737844838027,0.1447387,105160.0,105150.0,0.31856069]
[1737844838230,0.002,105160.0,105150.0,0.31856069]
[1737844839429,0.002,105160.0,105150.0,0.67936069]
[1737844839731,0.002,105160.0,105150.0,0.71920308]
[1737844840530,0.89015959,105170.0,105150.0,0.71920308]
[1737844840731,0.001,105160.0,105150.0,0.61650248]
[1737844840934,0.001,105160.0,105150.0,0.64482009]
[1737844841733,0.001,105160.0,105150.0,0.74752069]
[1737844842131,0.001,105160.0,105150.0,0.78736308]
[1737844842330,0.71879386,105170.0,105150.0,0.78736308]
[1737844842535,0.71979386,105170.0,105160.0,0.1027006]
[1737844843138,0.71879386,105170.0,105160.0,0.1027006]
[1737844844037,0.71979386,105170.0,105160.0,0.1027006]
[1737844846438,0.71979386,105170.0,105160.0,0.2548716]
[1737844851840,0.89115959,105170.0,105160.0,0.2548716]
[1737844858637,0.53035959,105170.0,105160.0,0.2855716]
[1737844858839,0.89115959,105170.0,105160.0,0.2855716]
[1737844859339,0.89115959,105170.0,105160.0,0.32576002]
[1737844859540,0.89115959,105170.0,105160.0,0.2855716]
[1737844861950,0.89115959,105170.0,105160.0,0.32600801]
[1737844862153,0.89115959,105170.0,105160.0,0.36620779]
[1737844863854,0.74842089,105170.0,105160.0,0.36620779]
[1737844864654,0.38762089,105170.0,105160.0,0.36620779]
[1737844865251,0.74842089,105170.0,105160.0,0.36620779]
[1737844869957,0.74842089,105170.0,105160.0,0.32577138]
[1737844877561,0.8910309,105170.0,105160.0,0.32577138]
[1737844877860,0.8910309,105170.0,105160.0,0.36620779]
[1737844883465,0.8910309,105170.0,105160.0,0.32577138]
[1737844887970,0.8910309,105170.0,105160.0,0.36645116]
[1737844894068,0.8280309,105170.0,105160.0,0.32577138]
[1737844896977,0.62812098,105170.0,105160.0,0.32577138]
[1737844899171,0.62812098,105170.0,105160.0,0.36645116]
[1737844899378,0.62812098,105170.0,105160.0,0.32577138]
[1737844899568,0.77073099,105170.0,105160.0,0.32577138]
[1737844899976,0.77073099,105170.0,105160.0,0.36645116]
[1737844900576,0.77073099,105170.0,105160.0,0.32577138]
[1737844903582,0.77073099,105170.0,105160.0,0.36645116]
[1737844905981,0.77073099,105170.0,105160.0,0.32577138]
[1737844906282,0.77073099,105170.0,105160.0,0.39067138]
[1737844909386,0.62812098,105170.0,105160.0,0.39067138]
[1737844913584,0.62812098,105170.0,105160.0,0.43135116]
[1737844915582,0.62812098,105170.0,105160.0,0.34734016]
[1737844916491,0.77073099,105170.0,105160.0,0.34734016]
[1737844916687,0.77073099,105170.0,105160.0,0.49951116]
[1737844919583,0.65666517,105170.0,105160.0,0.49951116]
[1737844925199,0.65666517,105170.0,105160.0,0.45883138]
[1737844929801,0.65666517,105170.0,105160.0,0.14290038]
[1737844929998,0.71996517,105170.0,105160.0,0.15963008]
[1737844930304,0.75256517,105170.0,105160.0,0.21098038]
[1737844931004,0.75256517,105170.0,105160.0,0.14290038]
[1737844931297,0.75256517,105170.0,105160.0,0.21114038]
[1737844931700,0.75256517,105170.0,105160.0,0.14290038]
[1737844931905,0.75256517,105170.0,105160.0,0.09155008]
[1737844932116,0.75256517,105170.0,105160.0,0.0513503]
[1737844933305,0.9239309,105170.0,105160.0,0.0513503]
[1737844936902,0.9239309,105170.0,105140.0,0.05149299]
[1737844936903,0.87076221,105170.0,105140.0,0.05149299]
[1737844937105,0.512986,105150.0,105140.0,0.16013697]
[1737844937403,0.512986,105150.0,105140.0,0.05149299]
[1737844937600,0.611386,105150.0,105140.0,0.05149299]
[1737844937801,0.972186,105150.0,105140.0,0.05149299]
[1737844939705,0.972186,105150.0,105140.0,0.05349299]
[1737844940503,0.972186,105150.0,105140.0,0.05449299]
[1737844941405,1.11452149,105150.0,105140.0,0.05449299]
[1737844942006,1.12392199,105150.0,105140.0,0.05449299]
[1737844943716,1.12392199,105150.0,105140.0,0.00314269]
[1737844943904,1.02308629,105150.0,105130.0,0.0513503]
[1737844944106,0.152215,105130.0,105120.0,0.1198703]
[1737844944307,0.513015,105130.0,105120.0,0.1198303]
[1737844944508,0.576915,105130.0,105120.0,0.1198303]
[1737844946411,0.576915,105130.0,105120.0,0.1238303]
[1737844947011,0.576915,105130.0,105120.0,0.1218303]
[1737844947818,0.77579431,105130.0,105120.0,0.1218303]
[1737844950416,0.77579431,105130.0,105120.0,0.0533503]
[1737844950619,0.66214899,105130.0,105120.0,0.0533503]
[1737844951314,0.66214899,105130.0,105120.0,0.002]
[1737844951521,0.66214899,105130.0,105120.0,0.0533503]
[1737844952027,0.66214899,105130.0,105120.0,0.002]
[1737844952226,0.66214899,105130.0,105120.0,0.0533503]
[1737844952412,0.66214899,105130.0,105120.0,0.002]
[1737844954023,0.66214899,105130.0,105120.0,0.0533503]
[1737844954319,0.71349929,105130.0,105120.0,0.002]
[1737844954522,0.71349929,105130.0,105110.0,0.03154269]
[1737844954523,0.59338429,105130.0,105110.0,0.03154269]
[1737844954712,0.5643793,105120.0,105110.0,0.03154269]
[1737844956024,0.5643793,105120.0,105110.0,0.03254269]
[1737844956218,0.5643793,105120.0,105110.0,0.03354269]
[1737844956616,0.5643793,105120.0,105110.0,0.03254269]
[1737844956817,0.5643793,105120.0,105110.0,0.03754269]
[1737844957315,0.76325861,105120.0,105110.0,0.03754269]
[1737844957916,0.71190831,105120.0,105110.0,0.03754269]
[1737844958415,0.71190831,105120.0,105110.0,0.08889299]
[1737844959425,0.71190831,105120.0,105110.0,0.03754269]
[1737844961520,0.76325861,105120.0,105110.0,0.03754269]
[1737844962135,0.71190831,105120.0,105110.0,0.03754269]
[1737844962429,0.76325861,105120.0,105110.0,0.03754269]
[1737844963512,0.71190831,105120.0,105110.0,0.03754269]
[1737844963714,0.76325861,105120.0,105110.0,0.03754269]
[1737844964832,0.82036011,105120.0,105110.0,0.03754269]
[1737844967526,0.70671479,105120.0,105110.0,0.03754269]
[1737844971231,0.73574503,105120.0,105110.0,0.03754269]
[1737844983244,0.5643793,105120.0,105110.0,0.03754269]
[1737844989240,0.76390216,105120.0,105110.0,0.03754269]
[1737845007850,0.71255186,105120.0,105110.0,0.03754269]
[1737845008559,0.513029,105120.0,105110.0,0.03754269]
[1737845022369,0.71255186,105120.0,105110.0,0.03754269]
[1737845030672,0.76390216,105120.0,105110.0,0.00614269]
[1737845030876,0.81525246,105120.0,105110.0,0.00614269]
[1737845033974,0.81525246,105120.0,105110.0,6.9e-07]
[1737845034173,0.86660276,105120.0,105110.0,6.9e-07]
[1737845034471,1.16660276,105120.0,105110.0,6.9e-07]
[1737845034875,1.16660276,105120.0,105070.0,0.0627]
[1737845034876,1.08249376,105120.0,105070.0,0.0627]
[1737845035170,0.513087,105080.0,105070.0,0.1140503]
[1737845035877,0.513087,105080.0,105070.0,0.0627]
[1737845036370,0.5644373,105080.0,105070.0,0.0627]
[1737845036572,0.70690896,105080.0,105070.0,0.0717]